Cogmind - Beta 12 @@@ ROGUE MODE // 2023.07.04 @ 20:26:03 Player: zapruda Result: Destroyed by G-34 Mercenary with Small Laser Performance ------------- Evolutions (1) 500 Regions Visited (2) 400 Robots Destroyed (24) 120 Value Destroyed (614) 614 Prototype IDs (0) 0 Alien Tech Used (0) 0 Bonus (0) 0 TOTAL SCORE: 1634 Bonus ------- None Cogmind --------- Core Integrity 0/400 Matter 270/300 Energy 159/250 System Corruption 0% Temperature Cool (24) Movement Hovering (60) Location -9/Materials Parts ------- > --- POWER (1) -------- Ion Engine > --- PROPULSION (2) --- Hover Unit > --- UTILITY (4) ------ (None) > --- WEAPON (2) ------- Small Laser > --- INVENTORY (5) ---- ECM Suite Grenade Launcher Mini Grenade Launcher Peak State ------------ > --- POWER ------------ Light Nuclear Core > --- PROPULSION ------- Hover Unit Hover Unit > --- UTILITY ---------- Improved Heat Sink Small Storage Unit > --- WEAPON ----------- Medium Laser Light Assault Rifle > --- INVENTORY -------- Hover Unit ECM Suite Particle Gun Grenade Launcher [Rating: 11] Favorites ----------- Power Light Ion Engine Engine Light Ion Engine Power Core Light Nuclear Core Propulsion Hover Unit Leg Aluminum Leg Wheel Compact Wheel Hover Unit Hover Unit Utility Small Storage Unit Device Improved Heat Sink Storage Small Storage Unit Weapon Light Assault Rifle Energy Gun Medium Laser Ballistic Gun Light Assault Rifle Build | -11 -10 -9 ------- Run | Jun Mat Mat Slots Evolved 2 | . . 2 Power . | . . . Propulsion . | . . . Utility 2 | . . 2 Weapon . | . . . Parts Attached 20 | . 11 9 Power 3 | . 1 2 Engine 2 | . 1 1 Core 1 | . . 1 Reactor . | . . . Propulsion 9 | . 6 3 Treads . | . . . Leg . | . . . Wheel 2 | . 2 . Hover 7 | . 4 3 Flight . | . . . Utility 2 | . 1 1 Device 2 | . 1 1 Storage . | . . . Processor . | . . . Hackware . | . . . Protection . | . . . Artifact . | . . . Weapon 6 | . 3 3 Energy Gun 3 | . 1 2 Energy Cannon . | . . . Ballistic Gun 3 | . 2 1 Ballistic Cannon . | . . . Launcher . | . . . Special Weapon . | . . . Impact Weapon . | . . . Slashing Weapon . | . . . Piercing Weapon . | . . . Special Melee Weapon . | . . . Unidentified Prototypes . | . . . Parts Lost 13 | . 2 11 Power 2 | . . 2 Propulsion 6 | . 2 4 Utility 2 | . . 2 Weapon 3 | . . 3 Highest Loss Streak 9 | . 1 9 To Critical Strikes . | . . . Average Slot Usage (%) 78 | . 90 59 Engine 11 | . 14 7 Leg 1 | . 2 . Wheel 6 | . 10 . Hover 14 | . 13 15 Device 6 | . 7 6 Storage 12 | . 14 9 Energy Gun 8 | . 5 11 Ballistic Gun 16 | . 22 8 Naked Turns 1 | . . 1 Heaviest Build 14 | 14 14 14 Greatest Support 32 | 20 32 12 Greatest Overweight (x) 2 | . 1 2 Average Overweight (x) . | . . . Largest Inventory Capacity 8 | 8 8 8 Average Capacity 7 | 8 8 7 Most Carried 8 | 6 8 7 Average Carried 6 | 6 6 5 Final Capacity 8 | 8 8 5 Final Carried 7 | 6 7 3 Class Distribution -------------------- 100% | Mutant Dominant Class ---------------- Mutant | -10/Materials Mutant | -9/Materials Resources | -11 -10 -9 ----------- Run | Jun Mat Mat Matter Collected 480 | 200 236 44 Remotely . | . . . Salvage Created 798 | . 437 361 Parts 70 | . 47 23 Haulers Intercepted 1 | . 1 . Recyclers Shooed . | . . . Parts Field Recycled . | . . . Retrieved Matter . | . . . Parts Self-Destructed . | . . . Prevented . | . . . Kills | -11 -10 -9 ------- Run | Jun Mat Mat Combat Hostiles Destroyed 20 | . 10 10 Guns 20 | . 10 10 Classes Destroyed 7 | . 5 2 Hauler 1 | . 1 . Operator 1 | . 1 . Watcher 2 | . 2 . Swarmer 6 | . 3 3 Grunt 12 | . 7 5 Brawler 1 | . . 1 Duelist 1 | . . 1 Best Kill Streak 5 | . 5 4 Combat Bots Only 4 | . 3 4 Max Kills in Single Turn 2 | . 2 1 Gunslinging 1 | . 1 . Exploded . | . . . Melee . | . . . Uniques/NPCs Destroyed . | . . . Combat | -11 -10 -9 -------- Run | Jun Mat Mat Damage Taken 1351 | . 381 970 Core 532 | . 131 401 Absorbed by Shields . | . . . Core Remaining (%) 73 | 100 47 . Volleys Fired 81 | . 40 41 Largest 2 | . 2 2 Hottest 115 | . 70 115 Shots Fired 147 | . 80 67 Gun 147 | . 80 67 Cannon . | . . . Launcher . | . . . Special . | . . . Kinetic 94 | . 72 22 Thermal 53 | . 8 45 Explosive . | . . . Electromagnetic . | . . . Robot Hit Streak 14 | . 8 14 Robot Miss Streak 5 | . 2 5 Penetration Max . | . . . Secondary Targets 4 | . 4 . Max Gunslinging Chain 1 | . 1 . Shots Hit Robots 99 | . 55 44 Core Hits 47 | . 26 21 Critical Kills . | . . . Critical Parts Destroyed . | . . . Critical Strikes 2 | . . 2 Burn 2 | . . 2 Melee Attacks . | . . . Impact . | . . . Slashing . | . . . Piercing . | . . . Sneak Attacks . | . . . Combat Hostiles . | . . . Follow-up Attacks . | . . . Damage Inflicted 1080 | . 570 510 Guns 1078 | . 570 508 Cannons . | . . . Explosions . | . . . Melee . | . . . Ramming 2 | . . 2 Kinetic 630 | . 508 122 Thermal 448 | . 62 386 Explosive . | . . . Electromagnetic . | . . . Impact . | . . . Slashing . | . . . Piercing . | . . . Highest Corruption . | . . . Average Corruption . | . . . Corruption Purged . | . . . Corruption Blocked . | . . . Overload Shots . | . . . Overflow Damage . | . . . Projectiles . | . . . Explosions . | . . . Melee . | . . . Knockbacks . | . . . Impact . | . . . Kinetic . | . . . Secondary . | . . . Self-Inflicted Damage 1 | . . 1 Shots . | . . . Rammed 1 | . . 1 Targets Rammed 1 | . . 1 Kicked . | . . . Crushed . | . . . Highest Temperature 334 | . 18 334 Average Temperature 79 | . 6 121 Received Heat Transfer 486 | . 195 291 Siege Activations . | . . . Robots Corrupted . | . . . Combat Hostiles . | . . . Parts Fried . | . . . Impact Corruptions . | . . . Robots Melted . | . . . Combat Hostiles . | . . . Parts Melted 2 | . . 2 Heat Transferred 1372 | . 185 1187 Parts Sabotaged . | . . . Parts Stolen . | . . . Parts Stripped . | . . . Power Chain Reactions . | . . . Missiles Intercepted . | . . . Alert | -11 -10 -9 ------- Run | Jun Mat Mat Peak Influence 395 | . 310 395 Initial 130 | . . 130 Average 194 | . 154 256 Maximum Alert Level 1 | . 1 1 Low Security (%) 56 | 100 67 38 Level 1 43 | . 32 61 Level 2 . | . . . Level 3 . | . . . Level 4 . | . . . Level 5 . | . . . High Security . | . . . Max Security . | . . . Squads Dispatched 5 | . 3 2 Investigation 2 | . 2 . Extermination . | . . . Reinforcement 3 | . 1 2 Assault . | . . . Garrison . | . . . Intercept . | . . . Searches Triggered . | . . . Construction Impeded . | . . . Haulers Reinforced . | . . . Active Scanning Responses . | . . . Cargo Convoy Interrupts . | . . . Stealth | -11 -10 -9 --------- Run | Jun Mat Mat Distress Signals 2 | . . 2 Communications Jammed . | . . . Distress Signals . | . . . Times Spotted 35 | . 16 19 Peak Tracking Total 9 | . 4 9 Tactical Retreats 4 | . 1 3 Traps | -11 -10 -9 ------- Run | Jun Mat Mat Traps Triggered 2 | . 2 . Indirectly . | . . . Trap Hack Attempts . | . . . Triggered . | . . . Disarmed . | . . . Reprogrammed . | . . . Reused . | . . . Traps Extracted . | . . . Installed . | . . . Triggered . | . . . Machines | -11 -10 -9 ---------- Run | Jun Mat Mat Machines Disabled . | . . . Max in Single Turn . | . . . Machines Repaired . | . . . Machines Sabotaged . | . . . Overloaded Fab Kills . | . . . Hacking | -11 -10 -9 --------- Run | Jun Mat Mat Machines Accessed 1 | . 1 . Terminals 1 | . 1 . Fabricators . | . . . Repair Stations . | . . . Recycling Units . | . . . Scanalyzers . | . . . Garrison Access . | . . . Total Hacks 2 | . 2 . Successful 1 | . 1 . Failed 1 | . 1 . Catastrophic 1 | . 1 . Database Lockouts . | . . . Manual 1 | . 1 . Terminals 2 | . 2 . Fabricators . | . . . Repair Stations . | . . . Recycling Units . | . . . Scanalyzers . | . . . Garrison Access . | . . . Terminal Hacks 1 | . 1 . Registered Prototypes 1 | . 1 . Fabricator Hacks . | . . . Repair Station Hacks . | . . . Recycling Unit Hacks . | . . . Scanalyzer . | . . . Garrison Access Hacks . | . . . Unauthorized Hacks . | . . . Terminals . | . . . Fabricators . | . . . Repair Stations . | . . . Recycling Units . | . . . Scanalyzers . | . . . Garrison Access . | . . . Data Cores Recovered . | . . . Used . | . . . Hacking Detections 1 | . 1 . Full Trace Events . | . . . Feedback Events . | . . . Feedback Blocked . | . . . Robot Schematics Acquired . | . . . Robots Built . | . . . Authchips . | . . . Time . | . . . Total Robot Build Rating . | . . . Part Schematics Acquired . | . . . Parts Built . | . . . Authchips . | . . . Time . | . . . Total Part Build Rating . | . . . Parts Repaired . | . . . Time . | . . . Parts Recycled . | . . . Recycled Matter . | . . . Retrieved Matter . | . . . Retrieved Components . | . . . Parts Scanalyzed . | . . . Part Schematics Acquired . | . . . Parts Damaged . | . . . Bothacking | -11 -10 -9 ------------ Run | Jun Mat Mat Used RIF Installer . | . . . Robots Hacked . | . . . Non-combat . | . . . Combat . | . . . Robot Hacks Applied . | . . . Relay Couplers Released . | . . . Fabnet Peak Effective % . | . . . Robots Rewired . | . . . Allies Hacked . | . . . Hacks Repelled . | . . . Allies | -11 -10 -9 -------- Run | Jun Mat Mat Total Allies . | . . . Largest Group . | . . . Highest-Rated Group . | . . . Highest-Rated Ally . | . . . Total Orders . | . . . Ally Attacks . | . . . Total Damage . | . . . Kills . | . . . Allies Corrupted . | . . . Allies Melted . | . . . Intel | -11 -10 -9 ------- Run | Jun Mat Mat Robot Analysis Total . | . . . Derelict Logs Recovered . | . . . Drone Launches . | . . . Drone Recoveries . | . . . Exploration | -11 -10 -9 ------------- Run | Jun Mat Mat Turns Passed 573 | 2 343 228 Spaces Moved 423 | 2 256 165 Core 4 | . . 4 Treads . | . . . Legs 24 | 2 22 . Wheels 48 | . 48 . Hover 347 | . 186 161 Flight . | . . . Fastest Speed 56 | 120 56 56 Average Speed 70 | 120 72 67 Slowest Speed 180 | 120 120 180 Overloaded Moves . | . . . Propulsion Burnouts . | . . . Robots Hopped . | . . . Cave-ins Triggered . | . . . Exploration Rate (%) 26 | 2 47 30 Regions Visited 2 Branch Regions . Pre-discovered Areas . | . . . Known Exits Taken . | . . . Unknown Exits Taken 2 | 1 1 . Scrap Searched . | . . . Spaces Dug . | . . . Terrain Destroyed . | . . . Melee . | . . . Projectile . | . . . AOE . | . . . Terrain Rammed . | . . . Walls Destroyed . | . . . Machines Disabled . | . . . Actions | -11 -10 -9 --------- Run | Jun Mat Mat Total 561 | 1 340 220 Wait 16 | . 16 . Move 421 | 1 255 165 Hop . | . . . Pick Up 14 | . 11 3 Fast Attach . | . . . Attach 13 | . 5 8 Detach 1 | . . 1 Swap 7 | . 6 1 Drop 7 | . 7 . Fire 81 | . 40 41 Melee . | . . . Ram 1 | . . 1 Kick . | . . . Crush . | . . . Escape Stasis . | . . . Rewire . | . . . Trap . | . . . Miscellaneous . | . . . Route ------- -11/Junkyard -10/Materials -9/Materials History --------- Turn | Location | Event 1 | -11/Junkyard | Discovered new exit (range 1) 3 | -11/Junkyard | Entered Materials 317 | -10/Materials | Discovered new exit (range 5) 318 | -10/Materials | Build established: Mutant 336 | -10/Materials | Core integrity fell below 50% 346 | -10/Materials | Entered another Materials area 346 | -9/Materials | Evolved 2 slots: Utility x2 515 | -9/Materials | Core integrity fell below 50% 556 | -9/Materials | Core integrity fell below 20% 574 | -9/Materials | Destroyed by G-34 Mercenary with Small Laser Last Messages --------------- 00507_ L-31 Rogue destroyed. 00515_ R-06 Scavenger collects Imp. Ion Engine. 00516_ G-34 Mercenary destroyed. 00519_ R-06 Scavenger collects Sml. Laser. 00529_ Ion Engine melted. 00529_ G-34 Mercenary destroyed. 00532_ Acquired 34 matter. 00532_ Particle Gun destroyed. 00534_ Hover Unit destroyed. 00536_ Acquired 10 matter. 00536_ G-34 Mercenary destroyed. 00536_ Med. Laser destroyed. 00544_ Lgt. Assault Rifle destroyed. 00547_ Knocked back. 00549_ Sml. Storage Unit destroyed. 00549_ Acquired Ion Engine. 00552_ Acquired Sml. Laser. 00563_ B-36 Bruiser destroyed. 00573_ Heat Sink melted. 00573_ G-34 Mercenary destroyed. Map ----- +----------------------------------------------------+ | ? " """"" #???????????????? | | ? # T """"""""" +???????????????? | | ?###?# " """ """ #???????????????? | | ?????# +???????????????? | | ?????? = #???????????????? | | ?????? ? #???????????????? | | ??????####??#+################ #???????????????? | | ???????????? ????????????????#% #???????????????? | | ?????????????????????????????#* #???????????????? | | ?????????????????????????????# #???????????????? | | ?????????????????????????????# #???????????????? | | ?????????????????????????????# #???????????????? | | ?????????????????????????????# #???????????????? | | ?????????????????????????????# #???????????????? | | ?????????????????????????????# #???????????????? | | ?????????????????????????????# #???????????????? | | ?????????????????????????????# #???????????????? | | ?????????????????????????????# #???????????????? | | ?????????????????????????????# #???????????????? | | ???????????????#?????????????#= #???????????????? | | ???????????????# #####+#####%[ #???????????????? | | ???????????????# ! #???????????????? | | ???????????????+ #???????????????? | | ???????????????# !%= #???????????????? | | ???????????????# #######+### +???????????????? | | ????????????????????# @[= # #???????????????? | | ????????????????????# """%=% # #???????????????? | | ????????????????????# """*[* # #???????????????? | | ?????????? ## """%g%=# #???????????????? | | ?????????? o == # #???????????????? | | ?????????? ## ]# #???????????????? | | ????????????????????# # +???????????????? | | ????????????????????# # #???????????????? | | ????????????????????# "T" # #???????????????? | | ????????????????????########## #???????????????? | | ?????????????????????????????? ???????????????? | | ?????????????????????????????? ????????????????? | | ?????????????????????????????????????????????????? | | ?????????????????????????????????????????????????? | | ?????????????????????????????????????????????????? | | ?????????????????????????????????????????????????? | | ?????????????????????????????????????????????????? | | ?????????????????????????????????????????????????? | | ?????????????????????????????????????????????????? | | ?????????????????????????????????????????????????? | | ?????????????????????????????????????????????????? | | ?????????????????????????????????????????????????? | | ?????????????????????????????????????????????????? | | ?????????????????????????????????????????????????? | | | +----------------------------------------------------+ Best States ------------- Heat Dissipation 42 Energy Generation 14 Energy Capacity 250 Matter Stores 300 Matter Capacity 300 Sight Range 16 Terrain Scan Density 10 Evasion (%) 55 Item Schematics ----------------- None Robot Schematics ------------------ None Fabricated ------------ Nothing Alien Tech Used ----------------- None Achievements -------------- None Challenges ------------ None Game ------ Seed RecyclingCatalystCycler Manual? 0 Play Time 00:08:21 Cumulative 78.3 hours Start 2023.07.04 @ 20:20:04 End 2023.07.04 @ 20:26:03 Sessions 1 Manual Loads 0 Difficulty Rogue Special Mode None Game No. 119 Rogue 119 Adventurer 0 Explorer 0 Win Type - Total 0 Types 0/0/0/0/0/0/0/0/0 Lore% 29 Gallery% 51 Achievement% 35 Wizard Run 0 Options --------- ASCII 0 Keyboard 0 Movement Mouse Keybinds 0 Fullscreen 2 Font 18/SmallcapsGlow Map View 76x50 Tactical HUD 1 Map Filters NONE Filters NONE Steam 1 RUN: b67ef5dc-1719-4ffd-b3a7-05b421587937